fUSD/lending_fUSD_20260217
["ID","MTS","AMOUNT","RATE_DAILY","PERIOD"]
[405859059,1771366251385,-150.0,0.000177,2]
[405859060,1771366251395,-600.0,0.000177,6]
[405859061,1771366251404,-1000.0,0.00017701,2]
[405859062,1771366251413,-807.0,0.00017723,2]
[405859063,1771366251423,-500.0,0.00017726,7]
[405859064,1771366251433,-1751.06105486,0.00017726,2]
[405859065,1771366251443,-1000.0,0.00017728,2]
[405859066,1771366251452,-150.0,0.00017729,2]
[405859067,1771366251461,-2004.41635969,0.0001773,2]
[405859068,1771366251471,-350.0,0.00017731,2]
[405859069,1771366251480,-1000.0,0.00017736,2]
[405859070,1771366251492,-1000.0,0.00017746,2]
[405859071,1771366251501,-166.11141928,0.00017754,2]
[405859072,1771366251511,-350.0,0.00017756,2]
[405859073,1771366251520,-168.0,0.00017781,2]
[405859074,1771366251529,-1751.06105486,0.00017781,2]
[405859075,1771366251539,-1000.0,0.00017794,2]
[405859076,1771366251549,-600.0,0.000178,6]
[405859077,1771366251559,-238.0,0.00017801,2]
[405859078,1771366251568,-150.0,0.00017801,2]
[405859079,1771366251577,-444.64,0.00017808,2]
[405859080,1771366251587,-1000.0,0.00017808,2]
[405859081,1771366251596,-800.0,0.00017808,2]
[405859082,1771366251605,-250.0,0.00017808,20]
[405859083,1771366251615,-250.0,0.00017808,20]
[405859084,1771366251624,-250.0,0.00017808,20]
[405859085,1771366251634,-250.0,0.00017808,20]
[405859086,1771366251643,-250.0,0.00017808,20]
[405859087,1771366251653,-250.0,0.00017808,20]
[405859088,1771366251663,-250.0,0.00017808,20]
[405859089,1771366251672,-250.0,0.00017808,20]
[405859090,1771366251682,-250.0,0.00017808,20]
[405859091,1771366251692,-250.0,0.00017808,20]
[405859092,1771366251703,-250.0,0.00017808,20]
[405859093,1771366251712,-250.0,0.00017808,20]
[405859094,1771366251722,-250.0,0.00017808,20]
[405859095,1771366251732,-250.0,0.00017808,20]
[405859096,1771366251741,-250.0,0.00017808,20]
[405859097,1771366251751,-250.0,0.00017808,20]
[405859098,1771366251761,-250.0,0.00017808,20]
[405859099,1771366251770,-150.0,0.00017827,2]
[405859100,1771366251780,-1000.0,0.00017835,2]
[405859101,1771366251791,-1000.0,0.00017843,2]
[405859102,1771366251801,-200.0,0.00017855,2]
[405859103,1771366251810,-1000.0,0.00017856,2]
[405859104,1771366251820,-500.0,0.00017856,2]
[405859105,1771366251829,-200.0,0.00017856,2]
[405859106,1771366251839,-200.0,0.00017856,2]
[405859107,1771366251849,-150.0,0.0001786,2]
[405859108,1771366251859,-1000.0,0.00017861,2]
[405859109,1771366251869,-150.0,0.00017862,2]
[405859110,1771366251878,-1751.06105486,0.00017863,2]
[405859111,1771366251889,-150.0,0.00017868,2]
[405859112,1771366251899,-150.0,0.0001787,2]
[405859113,1771366251908,-500.0,0.0001789,2]
[405859114,1771366251918,-629.14743313,0.00017899,2]
[405859115,1771366251928,-159.75009324,0.000179,2]
[405859116,1771366251938,-150.0,0.000179,2]
[405859117,1771366251948,-150.0,0.000179,2]
[405859118,1771366251959,-150.0,0.000179,2]
[405859119,1771366251978,-25000.0,0.000179,3]
[405859120,1771366251991,-150.0,0.000179,2]
[405859121,1771366252006,-677.0,0.000179,6]
[405859122,1771366252016,-150.0,0.000179,2]
[405859123,1771366252026,-1758.79423202,0.000179,2]
[405859124,1771366252036,-150.0,0.000179,2]
[405859125,1771366252047,-182.28581927,0.000179,2]
[405859126,1771366252058,-7875.93503608,0.000179,2]
[405859127,1771366252068,-37474.45314742,0.000179,2]
[405859128,1771366252081,-1000.0,0.00017906,2]
[405859129,1771366252091,-1000.0,0.00017914,2]
[405859130,1771366252101,-283.0,0.0001793,2]
[405859131,1771366252110,-807.0,0.00017957,2]
[405859132,1771366252120,-1000.0,0.00017958,2]
[405859133,1771366252130,-150.0,0.0001796,2]
[405859134,1771366252140,-1000.0,0.00017965,2]
[405859135,1771366252150,-282.0,0.00017966,2]
[405859136,1771366252160,-431.2849758,0.00017971,4]
[405859137,1771366252170,-174.61919141,0.00017971,4]
[405859138,1771366252180,-181.08010149,0.00017971,4]
[405859139,1771366252190,-187.78006525,0.00017971,4]
[405859140,1771366252199,-194.72792766,0.00017971,4]
[405859141,1771366252210,-184.99591854,0.00017971,4]
[405859142,1771366252220,-250.0,0.00017971,4]
[405859143,1771366252230,-250.0,0.00017971,4]
[405859144,1771366252241,-201.93286099,0.00017971,4]
[405859145,1771366252251,-250.0,0.00017971,4]
[405859146,1771366252261,-218.04759767,0.00017971,4]
[405859147,1771366252271,-151.0,0.00017971,4]
[405859148,1771366252281,-209.40437684,0.00017971,4]
[405859149,1771366252291,-250.0,0.00017971,4]
[405859150,1771366252302,-250.0,0.00017971,4]
[405859151,1771366252312,-151.0,0.00017971,4]
[405859152,1771366252323,-217.15233878,0.00017971,4]
[405859153,1771366252333,-250.0,0.00017971,4]
[405859154,1771366252343,-250.0,0.00017971,4]
[405859155,1771366252354,-151.0,0.00017971,4]
[405859156,1771366252364,-225.18697532,0.00017971,4]
[405859157,1771366252375,-250.0,0.00017971,4]
[405859158,1771366252385,-250.0,0.00017971,4]
[405859159,1771366252395,-151.0,0.00017971,4]
[405859160,1771366252406,-233.51889341,0.00017971,4]
[405859161,1771366252416,-250.0,0.00017971,4]
[405859162,1771366252427,-250.0,0.00017971,4]
[405859163,1771366252437,-151.0,0.00017971,4]
[405859164,1771366252447,-242.15909246,0.00017971,4]
[405859165,1771366252457,-151.0,0.00017971,4]
[405859166,1771366252467,-251.11897888,0.00017971,4]
[405859167,1771366252477,-250.0,0.00017971,4]
[405859168,1771366252486,-260.4103811,0.00017971,4]
[405859169,1771366252497,-250.0,0.00017971,4]
[405859170,1771366252507,-151.0,0.00017971,4]
[405859171,1771366252517,-250.0,0.00017971,4]
[405859172,1771366252526,-151.0,0.00017971,4]
[405859173,1771366252537,-270.0455652,0.00017971,4]
[405859174,1771366252546,-250.0,0.00017971,4]
[405859175,1771366252556,-151.0,0.00017971,4]
[405859176,1771366252566,-280.03725112,0.00017971,4]
[405859177,1771366252576,-200.0,0.00017971,4]
[405859178,1771366252585,-250.0,0.00017971,4]
[405859179,1771366252595,-151.0,0.00017971,4]
[405859180,1771366252605,-290.39862941,0.00017971,4]
[405859181,1771366252615,-200.0,0.00017971,4]
[405859182,1771366252625,-151.0,0.00017971,4]
[405859183,1771366252635,-301.1433787,0.00017971,4]
[405859184,1771366252645,-151.0,0.00017971,4]
[405859185,1771366252655,-250.0,0.00017971,4]
[405859186,1771366252664,-151.0,0.00017971,4]
[405859187,1771366252675,-500.0,0.00017971,4]
[405859188,1771366252685,-250.0,0.00017971,4]
[405859189,1771366252695,-151.0,0.00017971,4]
[405859190,1771366252705,-500.0,0.00017971,4]
[405859191,1771366252714,-250.0,0.00017971,4]
[405859192,1771366252724,-500.0,0.00017971,4]
[405859193,1771366252734,-250.0,0.00017971,4]
[405859194,1771366252743,-151.0,0.00017971,4]
[405859195,1771366252753,-500.0,0.00017971,4]
[405859196,1771366252763,-250.0,0.00017971,4]
[405859197,1771366252773,-500.0,0.00017971,4]
[405859198,1771366252783,-250.0,0.00017971,4]
[405859199,1771366252792,-151.0,0.00017971,4]
[405859200,1771366252802,-500.0,0.00017971,4]
[405859201,1771366252812,-250.0,0.00017971,4]
[405859202,1771366252822,-500.0,0.00017971,4]
[405859203,1771366252832,-250.0,0.00017971,4]
[405859204,1771366252841,-151.0,0.00017971,4]
[405859205,1771366252850,-500.0,0.00017971,4]
[405859206,1771366252860,-250.0,0.00017971,4]
[405859207,1771366252870,-250.0,0.00017971,4]
[405859208,1771366252880,-151.0,0.00017971,4]
[405859209,1771366252889,-250.0,0.00017971,4]
[405859210,1771366252899,-500.0,0.00017971,4]
[405859211,1771366252909,-250.0,0.00017971,4]
[405859212,1771366252919,-151.0,0.00017971,4]
[405859213,1771366252929,-250.0,0.00017971,4]
[405859214,1771366252939,-500.0,0.00017971,4]
[405859215,1771366252949,-250.0,0.00017971,4]
[405859216,1771366252958,-151.0,0.00017971,4]
[405859217,1771366252968,-250.0,0.00017971,4]
[405859218,1771366252977,-500.0,0.00017971,4]
[405859219,1771366252987,-250.0,0.00017971,4]
[405859220,1771366252998,-250.0,0.00017971,4]
[405859221,1771366253010,-151.0,0.00017971,4]
[405859222,1771366253020,-500.0,0.00017971,4]
[405859223,1771366253030,-250.0,0.00017971,4]
[405859224,1771366253043,-250.0,0.00017971,4]
[405859225,1771366253053,-151.0,0.00017971,4]
[405859226,1771366253063,-500.0,0.00017971,4]
[405859227,1771366253074,-299.40346672,0.00017971,4]
[405859228,1771366253084,-250.0,0.00017971,4]
[405859229,1771366253094,-500.0,0.00017971,4]
[405859230,1771366253104,-250.0,0.00017971,4]
[405859231,1771366253115,-500.0,0.00017971,4]
[405859232,1771366253124,-721.12765535,0.00017971,4]
[405859233,1771366253135,-747.8093786,0.00017971,4]
[405859234,1771366253145,-775.47832561,0.00017971,4]
[405859235,1771366253156,-804.17102365,0.00017971,4]
[405859236,1771366253166,-833.92535153,0.00017971,4]
[405859237,1771366253176,-864.78058953,0.00017971,4]
[405859238,1771366253186,-200.0,0.00017971,4]
[405859239,1771366253196,-896.77747135,0.00017971,4]
[405859240,1771366253206,-200.0,0.00017971,4]
[405859241,1771366253216,-929.95823779,0.00017971,4]
[405859242,1771366253226,-200.0,0.00017971,4]
[405859243,1771366253235,-964.36669259,0.00017971,4]
[405859244,1771366253246,-200.0,0.00017971,4]
[405859245,1771366253256,-1000.04826021,0.00017971,4]
[405859246,1771366253266,-200.0,0.00017971,4]
[405859247,1771366253276,-1037.05004584,0.00017971,4]
[405859248,1771366253286,-743.50770149,0.00017971,4]
[405859249,1771366253296,-200.0,0.00017971,4]
[405859250,1771366253307,-174.5920753,0.00017971,4]
[405859251,1771366253317,-771.01748645,0.00017971,4]
[405859252,1771366253327,-200.0,0.00017971,4]
[405859253,1771366253338,-799.54513345,0.00017971,4]
[405859254,1771366253348,-693.3919763,0.00017971,4]
[405859255,1771366253359,-829.12830338,0.00017971,4]
[405859256,1771366253369,-719.04747942,0.00017971,4]
[405859257,1771366253379,-171.52852621,0.00017971,4]
[405859258,1771366253389,-745.65223616,0.00017971,4]
[405859259,1771366253400,-773.2413689,0.00017971,4]
[405859260,1771366253411,-801.85129955,0.00017971,4]
[405859261,1771366253420,-831.51979763,0.00017971,4]
[405859262,1771366253431,-862.28603014,0.00017971,4]
[405859263,1771366253441,-894.19061326,0.00017971,4]
[405859264,1771366253452,-927.27566595,0.00017971,4]
[405859265,1771366253462,-151.0,0.00017971,4]
[405859266,1771366253472,-961.58486559,0.00017971,4]
[405859267,1771366253483,-151.0,0.00017971,4]
[405859268,1771366253493,-997.16350561,0.00017971,4]
[405859269,1771366253503,-250.0,0.00017971,4]
[405859270,1771366253512,-151.0,0.00017971,4]
[405859271,1771366253522,-3000.0,0.00017971,4]
[405859272,1771366253533,-250.0,0.00017971,4]
[405859273,1771366253543,-151.0,0.00017971,4]
[405859274,1771366253553,-3000.0,0.00017971,4]
[405859275,1771366253563,-250.0,0.00017971,4]
[405859276,1771366253573,-151.0,0.00017971,4]
[405859277,1771366253583,-3000.0,0.00017971,4]
[405859278,1771366253592,-250.0,0.00017971,4]
[405859279,1771366253603,-151.0,0.00017971,4]
[405859280,1771366253613,-3000.0,0.00017971,4]
[405859281,1771366253623,-250.0,0.00017971,4]
[405859282,1771366253632,-250.0,0.00017971,4]
[405859283,1771366253643,-151.0,0.00017971,4]
[405859284,1771366253652,-3000.0,0.00017971,4]
[405859285,1771366253663,-250.0,0.00017971,4]
[405859286,1771366253673,-250.0,0.00017971,4]
[405859287,1771366253683,-151.0,0.00017971,4]
[405859288,1771366253693,-3000.0,0.00017971,4]
[405859289,1771366253703,-250.0,0.00017971,4]
[405859290,1771366253713,-250.0,0.00017971,4]
[405859291,1771366253723,-151.0,0.00017971,4]
[405859292,1771366253733,-3000.0,0.00017971,4]
[405859293,1771366253743,-250.0,0.00017971,4]
[405859294,1771366253754,-250.0,0.00017971,4]
[405859295,1771366253764,-151.0,0.00017971,4]
[405859296,1771366253774,-250.0,0.00017971,4]
[405859297,1771366253784,-2570.81608438,0.00017971,4]
[405859298,1771366253794,-250.0,0.00017971,4]
[405859299,1771366253805,-151.0,0.00017971,4]
[405859300,1771366253814,-250.0,0.00017971,4]
[405859301,1771366253825,-250.0,0.00017971,4]
[405859302,1771366253835,-151.0,0.00017971,4]
[405859303,1771366253845,-250.0,0.00017971,4]
[405859304,1771366253856,-250.0,0.00017971,4]
[405859305,1771366253866,-151.0,0.00017971,4]
[405859306,1771366253876,-250.0,0.00017971,4]
[405859307,1771366253886,-250.0,0.00017971,4]
[405859308,1771366253897,-151.0,0.00017971,4]
[405859309,1771366253907,-250.0,0.00017971,4]
[405859310,1771366253918,-151.0,0.00017971,4]
[405859311,1771366253928,-250.0,0.00017971,4]
[405859312,1771366253939,-500.0,0.00017971,4]
[405859313,1771366253949,-500.0,0.00017971,4]
[405859314,1771366253960,-500.0,0.00017971,4]
[405859315,1771366253970,-500.0,0.00017971,4]
[405859316,1771366253980,-500.0,0.00017971,4]
[405859317,1771366254271,-500.0,0.00017971,4]
[405859318,1771366254281,-500.0,0.00017971,4]
[405859319,1771366254291,-500.0,0.00017971,4]
[405859320,1771366254300,-500.0,0.00017971,4]
[405859321,1771366254310,-500.0,0.00017971,4]
[405859322,1771366254320,-500.0,0.00017971,4]
[405859323,1771366254330,-150.0,0.00017978,2]
[405859324,1771366254340,-1000.0,0.00017979,2]
[405859325,1771366254350,-1000.0,0.00017983,2]
[405859326,1771366254359,-150.0,0.00017985,2]
[405859327,1771366254370,-150.0,0.00017985,2]
[405859328,1771366254380,-576.40340077,0.0001799,2]
[405859329,1771366254390,-500.0,0.0001799,2]
[405859330,1771366254399,-152.0,0.00017991,2]
[405859331,1771366254409,-1508.0,0.00017991,2]
[405859332,1771366254419,-152.0,0.00017991,2]
[405859333,1771366254428,-1508.0,0.00017991,2]
[405859334,1771366254437,-152.0,0.00017991,2]
[405859335,1771366254447,-1508.0,0.00017991,2]
[405859336,1771366254456,-152.0,0.00017991,2]
[405859337,1771366254466,-1508.0,0.00017991,2]
[405859338,1771366254475,-152.0,0.00017991,2]
[405859339,1771366254484,-153.0,0.00017991,2]
[405859340,1771366254494,-152.0,0.00017991,2]
[405859341,1771366254503,-153.0,0.00017991,2]
[405859342,1771366254512,-152.0,0.00017991,2]
[405859343,1771366254522,-1508.0,0.00017991,2]
[405859344,1771366254531,-158.65284712,0.00017991,2]
[405859345,1771366254541,-153.0,0.00017991,2]
[405859346,1771366254551,-152.0,0.00017991,2]
[405859347,1771366254560,-1508.0,0.00017991,2]
[405859348,1771366254570,-1508.0,0.00017991,2]
[405859349,1771366254579,-1508.0,0.00017991,2]
[405859350,1771366254589,-1508.0,0.00017991,2]
[405859351,1771366254598,-1508.0,0.00017991,2]
[405859352,1771366254608,-1508.0,0.00017991,2]
[405859353,1771366254617,-1508.0,0.00017991,2]
[405859354,1771366254627,-152.0,0.00017991,2]
[405859355,1771366254636,-152.0,0.00017991,2]
[405859356,1771366254646,-153.0,0.00017991,2]
[405859357,1771366254655,-152.0,0.00017991,2]
[405859358,1771366254665,-152.0,0.00017991,2]
[405859359,1771366254674,-152.0,0.00017991,2]
[405859360,1771366254683,-152.0,0.00017991,2]
[405859361,1771366254693,-152.0,0.00017991,2]
[405859362,1771366254702,-152.0,0.00017991,2]
[405859363,1771366254711,-152.0,0.00017991,2]
[405859364,1771366254721,-152.0,0.00017991,2]
[405859365,1771366254731,-152.0,0.00017991,2]
[405859366,1771366254740,-153.0,0.00017991,2]
[405859367,1771366254750,-153.0,0.00017991,2]
[405859368,1771366254759,-153.0,0.00017991,2]
[405859369,1771366254769,-153.0,0.00017991,2]
[405859370,1771366254779,-153.0,0.00017991,2]
[405859371,1771366254789,-153.0,0.00017991,2]
[405859372,1771366254799,-153.0,0.00017991,2]
[405859373,1771366254809,-153.0,0.00017991,2]
[405859374,1771366254818,-153.0,0.00017991,2]
[405859375,1771366254828,-153.0,0.00017991,2]
[405859376,1771366254838,-153.0,0.00017991,2]
[405859377,1771366254848,-153.0,0.00017991,2]
[405859378,1771366254858,-153.0,0.00017991,2]
[405859379,1771366254868,-153.0,0.00017991,2]
[405859380,1771366254877,-153.0,0.00017991,2]
[405859381,1771366254888,-151.0,0.00017996,2]
[405859382,1771366254898,-151.0,0.00017997,2]
[405859383,1771366254907,-4380.9678672,0.00017999,2]
[405859384,1771366254917,-152607.69583238,0.00017999,2]
[405859390,1771366753481,-327.3816354,0.0002,120]
[405859391,1771366753518,-6356.20485502,0.0002,120]
[405859392,1771366753555,-341.74,0.0002,120]
[405859393,1771366753593,-1231.06,0.000203,120]
[405859394,1771366753631,-1743.61350958,0.000205,120]
[405859396,1771366810255,389.0,3.166e-05,2]
[405859397,1771366810297,389.0,3.786e-05,2]
[405859398,1771366810386,389.0,3.351e-05,2]
[405859399,1771366810448,389.0,5.687e-05,2]
[405859400,1771366810499,389.0,5.58e-06,2]
[405859439,1771367431740,-1000.0,7.389e-05,2]
[405859440,1771367431750,-300.0,7.389e-05,2]
[405859442,1771367431761,-300.0,7.389e-05,2]
[405859444,1771367431772,-1200.0,7.389e-05,2]
[405859446,1771367431782,-213.0,7.389e-05,2]
[405859448,1771367431792,-600.0,7.389e-05,2]
[405859450,1771367431801,-600.0,7.389e-05,7]
[405859451,1771367431811,-250.0,7.389e-05,2]
[405859452,1771367431821,-720.54,7.39e-05,2]
[405859453,1771367431854,-52649.62,7.39e-05,2]
[405859454,1771367431865,-500.0,7.413e-05,2]
[405859455,1771367431876,-150.0,7.523e-05,2]
[405859456,1771367431886,-2185.89,7.524e-05,2]
[405859457,1771367431902,-1600.0,7.543e-05,2]
[405859458,1771367431912,-2300.0,7.6e-05,2]
[405859459,1771367431923,-163.39,7.7e-05,2]
[405859460,1771367431933,-4600.0,7.7e-05,2]
[405859461,1771367431943,-261.33012011,7.799e-05,2]
[405859462,1771367431953,-500.0,7.799e-05,2]
[405859463,1771367431964,-500.0,7.799e-05,2]
[405859464,1771367431975,-500.0,7.799e-05,2]
[405859465,1771367431985,-500.0,7.799e-05,2]
[405859466,1771367431995,-500.0,7.799e-05,2]
[405859467,1771367432005,-500.0,7.799e-05,2]
[405859468,1771367432015,-500.0,7.799e-05,2]
[405859469,1771367432025,-500.0,7.799e-05,2]
[405859470,1771367432035,-500.0,7.799e-05,2]
[405859471,1771367432046,-500.0,7.799e-05,2]
[405859472,1771367432057,-500.0,7.799e-05,2]
[405859473,1771367432067,-500.0,7.799e-05,2]
[405859474,1771367432078,-500.0,7.799e-05,2]
[405859475,1771367432088,-500.0,7.799e-05,2]
[405859476,1771367432098,-500.0,7.799e-05,2]
[405859477,1771367432108,-500.0,7.799e-05,2]
[405859478,1771367432119,-500.0,7.799e-05,2]
[405859479,1771367432129,-319.3470925,7.799e-05,2]
[405859480,1771367432139,-500.0,7.799e-05,2]
[405859481,1771367432149,-500.0,7.799e-05,2]
[405859482,1771367432159,-500.0,7.799e-05,2]
[405859483,1771367432170,-500.0,7.799e-05,2]
[405859484,1771367432180,-500.0,7.799e-05,2]
[405859485,1771367432190,-500.0,7.799e-05,2]
[405859486,1771367432201,-500.0,7.799e-05,2]
[405859487,1771367432211,-500.0,7.799e-05,2]
[405859488,1771367432222,-500.0,7.799e-05,2]
[405859489,1771367432232,-500.0,7.799e-05,2]
[405859490,1771367432242,-500.0,7.799e-05,2]
[405859491,1771367432258,-500.0,7.799e-05,2]
[405859492,1771367432269,-500.0,7.799e-05,2]
[405859493,1771367432279,-500.0,7.799e-05,2]
[405859494,1771367432289,-500.0,7.799e-05,2]
[405859495,1771367432300,-500.0,7.799e-05,2]
[405859496,1771367432310,-500.0,7.799e-05,2]
[405859497,1771367432321,-500.0,7.799e-05,2]
[405859498,1771367432331,-500.0,7.799e-05,2]
[405859499,1771367432342,-500.0,7.799e-05,2]
[405859500,1771367432352,-500.0,7.799e-05,2]
[405859501,1771367432363,-500.0,7.799e-05,2]
[405859502,1771367432375,-500.0,7.799e-05,2]
[405859503,1771367432387,-500.0,7.799e-05,2]
[405859504,1771367432398,-500.0,7.799e-05,2]
[405859505,1771367432408,-500.0,7.799e-05,2]
[405859506,1771367432420,-337.42278739,7.799e-05,2]
[405859507,1771367432463,-162.57721261,7.799e-05,2]
[405859508,1771367432473,-230.85634732,7.799e-05,2]
[405859509,1771367432485,-319.14365268,7.799e-05,2]
[405859510,1771367432496,-500.0,7.799e-05,2]
[405859511,1771367432506,-500.0,7.799e-05,2]
[405859512,1771367432516,-500.0,7.799e-05,2]
[405859513,1771367432526,-500.0,7.799e-05,2]
[405859514,1771367432536,-289.92634732,7.799e-05,2]
[405859515,1771367432549,-210.07365268,7.799e-05,2]
[405859516,1771367432560,-500.0,7.799e-05,2]
[405859517,1771367432570,-451.16234732,7.799e-05,2]
[405859518,1771367432612,-48.83765268,7.799e-05,2]
[405859519,1771367432623,-500.0,7.799e-05,2]
[405859520,1771367432635,-500.0,7.799e-05,2]
[405859521,1771367432645,-4701.16228732,7.8e-05,2]
[405859522,1771367432658,-1524.9999999,7.8e-05,2]
[405859530,1771367437827,-773.83771278,7.8e-05,2]
[405859531,1771367437838,-207.72228722,7.8e-05,2]
[405859532,1771367437884,-9622.80179672,7.8e-05,2]
[405859533,1771367437896,-3015.00009,7.8e-05,2]
[405859534,1771367437908,-18908.20402541,7.8e-05,2]
[405859562,1771367438387,-3468246.27180065,7.8e-05,2]
[405859565,1771367438398,-12509.95095646,7.898e-05,2]
[405859567,1771367438408,-489.23765123,7.899e-05,2]
[405859569,1771367438417,-625.95457302,7.899e-05,2]
[405859571,1771367438429,-1009.2,7.899e-05,2]
[405859573,1771367438439,-6166.57599239,7.9e-05,2]
[405859575,1771367438448,-30232.87996198,7.9e-05,2]
[405859577,1771367438459,-12183.15198483,7.9e-05,2]
[405859579,1771367438469,-16194.20264639,7.9e-05,2]
[405859581,1771367438479,-26221.82930039,7.9e-05,2]
[405859583,1771367438489,-9300.0,7.9e-05,2]
[405859585,1771367438499,-6737.6189,7.9e-05,2]
[405859587,1771367438509,-37943.359931,7.945e-05,2]
[405859589,1771367438519,-500.0,8e-05,2]
[405859591,1771367438528,-11700.0,8e-05,2]
[405859593,1771367438538,-4011.112,8.099e-05,2]
[405859595,1771367438547,-387.337,8.099e-05,2]
[405859597,1771367438557,-999.99,8.099e-05,2]
[405859599,1771367438566,-9999.99,8.099e-05,2]
[405859601,1771367438576,-13062.74,8.099e-05,2]
[405859603,1771367438585,-150.99,8.099e-05,2]
[405859605,1771367438596,-150.99,8.099e-05,2]
[405859607,1771367438605,-299.99,8.099e-05,2]
[405859609,1771367438615,-9999.99,8.099e-05,2]
[405859611,1771367438624,-9999.99,8.099e-05,2]
[405859613,1771367438634,-250.0,8.128e-05,2]
[405859615,1771367438643,-420.0,8.128e-05,2]
[405859617,1771367438654,-1680.0,8.128e-05,2]
[405859619,1771367438666,-1009.2,8.173e-05,2]
[405859621,1771367438676,-1285.1,8.178e-05,2]
[405859623,1771367438686,-4129.358,8.199e-05,2]
[405859625,1771367438696,-89451.1427,8.199e-05,2]
[405859627,1771367438705,-9999.99,8.199e-05,2]
[405859629,1771367438715,-9999.99,8.199e-05,2]
[405859631,1771367438725,-500.0,8.219e-05,2]
[405859633,1771367438734,-500.0,8.219e-05,2]
[405859635,1771367438743,-500.0,8.219e-05,2]
[405859637,1771367438753,-500.0,8.219e-05,2]
[405859639,1771367438763,-500.0,8.219e-05,2]
[405859641,1771367438773,-500.0,8.219e-05,2]
[405859644,1771367438783,-500.0,8.219e-05,2]
[405859646,1771367438793,-500.0,8.219e-05,2]
[405859648,1771367438802,-202.89365559,8.219e-05,2]
[405859650,1771367438812,-375.839389,8.219e-05,2]
[405859652,1771367438823,-161.074023,8.219e-05,2]
[405859654,1771367438832,-255.0,8.275e-05,2]
[405859656,1771367438842,-499.99,8.298e-05,2]
[405859658,1771367438851,-1576.0,8.366e-05,2]
[405859660,1771367438865,-479.0,8.382e-05,2]
[405859662,1771367438875,-186.41,8.4e-05,2]
[405859664,1771367438885,-500.0,8.4e-05,2]
[405859666,1771367438895,-1009.2,8.447e-05,2]
[405859668,1771367438908,-1600.0,8.485e-05,2]
[405859670,1771367438918,-500.0,8.674e-05,2]
[405859673,1771367438928,-1728.0,8.718e-05,2]
[405859674,1771367438938,-1009.2,8.721e-05,2]
[405859677,1771367438947,-1419.0,8.736e-05,2]
[405859678,1771367438957,-890.0,8.753e-05,2]
[405859680,1771367438966,-613.0,8.771e-05,2]
[405859683,1771367438976,-587.0,8.941e-05,2]
[405859685,1771367438986,-2351.0,8.941e-05,2]
[405859687,1771367438996,-500.0,8.948e-05,2]
[405859689,1771367439006,-1009.2,8.995e-05,2]
[405859691,1771367439017,-275.59,9.029e-05,2]
[405859693,1771367439026,-433.0,9.102e-05,2]
[405859695,1771367439036,-500.0,9.207e-05,3]
[405859697,1771367439046,-500.0,9.207e-05,3]
[405859699,1771367439055,-500.0,9.207e-05,3]
[405859701,1771367439068,-500.0,9.207e-05,3]
[405859703,1771367439078,-500.0,9.207e-05,3]
[405859705,1771367439087,-500.0,9.207e-05,3]
[405859707,1771367439097,-500.0,9.207e-05,3]
[405859709,1771367439107,-150.0,9.207e-05,2]
[405859711,1771367439117,-150.0,9.207e-05,2]
[405859713,1771367439127,-150.0,9.207e-05,2]
[405859715,1771367439137,-295.27659262,9.22e-05,2]
[405859717,1771367439152,-500.0,9.222e-05,2]
[405859720,1771367439162,-468.51,9.237e-05,2]
[405859721,1771367439172,-499.0,9.246e-05,2]
[405859724,1771367439183,-500.0,9.262e-05,3]